bitfinex/quotes_SOLUSD_20250625
["timestamp","ask_amount","ask_price","bid_price","bid_amount"]
[1750869588944,6.97515793,143.37,143.33,10.02798718]
[1750869589841,17.00314511,143.37,143.33,10.02798718]
[1750869590006,17.00314511,143.37,143.32,11.66288718]
[1750869590723,148.6,143.36,143.32,11.66288718]
[1750869591522,6.97593303,143.35,143.32,11.66288718]
[1750869592633,17.00392021,143.35,143.32,1.6349]
[1750869593308,10.02798718,143.33,143.28,18.23018718]
[1750869593505,10.02798718,143.33,143.28,25.20951096]
[1750869593830,148.6,143.34,143.31,10.02798718]
[1750869594323,158.62798718,143.34,143.3,10.02798718]
[1750869594527,6.97739324,143.32,143.28,11.61988718]
[1750869597031,6.97739324,143.32,143.29,10.02798718]
[1750869598503,155.57701791,143.33,143.3,10.02798718]
[1750869600218,148.6,143.33,143.3,10.02798718]
[1750869600420,148.6,143.33,143.31,10.02798718]
[1750869600615,155.57691978,143.33,143.3,10.02798718]
[1750869601335,148.6,143.33,143.3,10.02798718]
[1750869602116,155.57695138,143.33,143.3,10.02798718]
[1750869602911,155.57695138,143.33,143.28,27.5919]
[1750869602912,10.02798718,143.32,143.28,11.61988718]
[1750869603140,10.02798718,143.32,143.28,1.5919]
[1750869603436,165.60493856,143.33,143.28,11.61988718]
[1750869604330,10.02798718,143.32,143.28,11.61988718]
[1750869605140,10.02798718,143.32,143.28,1.5919]
[1750869605816,6.97788012,143.31,143.28,1.5919]
[1750869606010,17.0058673,143.31,143.28,1.5919]
[1750869606210,13.66892344,143.31,143.28,1.5919]
[1750869607008,13.66866407,143.32,143.28,8.28294332]
[1750869607909,6.97762075,143.32,143.28,15.26224329]
[1750869608126,155.57710209,143.33,143.3,6.69104332]
[1750869608330,155.57710209,143.33,143.29,6.69104332]
[1750869608522,162.26814541,143.33,143.29,6.69104332]
[1750869609434,162.26814541,143.33,143.28,1.5919]
[1750869609638,6.69104332,143.32,143.28,1.5919]
[1750869610226,6.97788012,143.31,143.28,1.5919]
[1750869610641,13.66859008,143.32,143.28,8.28294332]
[1750869611934,6.97754676,143.32,143.28,8.28294332]
[1750869613738,13.66859008,143.32,143.28,1.5919]
[1750869613914,13.66859008,143.32,143.24,1.5927]
[1750869613915,6.69104332,143.29,143.24,1.5927]
[1750869614119,148.6,143.31,143.27,6.69104332]
[1750869614631,148.6,143.31,143.28,6.69104332]
[1750869614936,155.57807037,143.31,143.28,6.69104332]
[1750869615545,148.6,143.31,143.28,6.69104332]
[1750869615743,148.6,143.31,143.29,6.69104332]
[1750869616037,148.6,143.31,143.3,6.69104332]
[1750869616237,148.6,143.31,143.29,6.69104332]
[1750869617432,148.6,143.31,143.3,6.69104332]
[1750869618623,148.6,143.31,143.3,15.33181038]
[1750869621236,148.6,143.37,143.3,15.33181038]
[1750869621438,148.6,143.37,143.34,6.69104332]
[1750869621749,148.6,143.37,143.3,8.64076706]
[1750869621750,155.57517575,143.37,143.33,6.69104332]
[1750869622648,155.57517575,143.37,143.34,6.69104332]
[1750869622870,148.6,143.37,143.34,6.69104332]
[1750869623751,148.6,143.37,143.35,6.69104332]
[1750869624138,155.57503712,143.37,143.35,6.69104332]
[1750869624349,148.6,143.37,143.35,6.69104332]
[1750869624548,148.6,143.37,143.34,6.97639072]
[1750869624549,148.6,143.37,143.36,6.69104332]
[1750869624758,148.6,143.37,143.35,6.69104332]
[1750869627156,148.6,143.37,143.36,6.69104332]
[1750869628841,155.57500487,143.37,143.3,1.6624]
[1750869629039,6.69104332,143.34,143.3,1.6624]
[1750869629240,6.69104332,143.33,143.3,1.6624]
[1750869629450,6.69104332,143.32,143.27,39.67064799]
[1750869629755,6.69104332,143.32,143.28,6.69104332]
[1750869630056,155.29104332,143.34,143.29,6.69104332]
[1750869630245,155.29104332,143.34,143.3,6.69104332]
[1750869630841,148.6,143.34,143.31,6.69104332]
[1750869631960,148.6,143.34,143.32,6.69104332]
[1750869632836,148.6,143.34,143.31,6.69104332]
[1750869633442,148.6,143.34,143.32,6.69104332]
[1750869634932,148.6,143.34,143.33,6.69104332]
[1750869635336,148.6,143.34,143.32,8.5966278]
[1750869635660,148.6,143.34,143.33,6.69104332]
[1750869638059,6.97515919,143.37,143.33,6.69104332]
[1750869638358,162.26572317,143.38,143.34,6.69104332]
[1750869640167,155.57467985,143.38,143.32,1.6193]
[1750869640361,6.69104332,143.37,143.32,8.31034332]
[1750869640957,11.87864141,143.37,143.32,8.31034332]
[1750869641466,12.16271019,143.37,143.33,6.69104332]
[1750869641635,155.57458741,143.38,143.35,6.69104332]
[1750869641834,155.57458741,143.38,143.36,6.69104332]
[1750869642065,155.57458741,143.38,143.32,8.59667588]
[1750869642266,155.57458741,143.38,143.34,6.69104332]
[1750869642768,155.57458741,143.38,143.35,6.69104332]
[1750869644963,148.6,143.38,143.35,13.66697173]
[1750869645145,148.6,143.38,143.36,6.69104332]
[1750869645834,148.6,143.38,143.37,6.69104332]
[1750869646562,6.97323483,143.41,143.37,6.69104332]
[1750869646865,6.97323483,143.41,143.38,6.69104332]
[1750869648462,5.18839773,143.42,143.39,6.69104332]
[1750869648652,155.5723599,143.43,143.4,6.69104332]
[1750869648862,155.5723599,143.43,143.39,6.69104332]
[1750869649168,155.5723599,143.43,143.4,6.69104332]
[1750869649344,155.5723599,143.43,143.39,6.69104332]
[1750869650044,162.26340322,143.43,143.39,6.69104332]
[1750869650763,162.26340322,143.43,143.38,1.5194]
[1750869650764,6.69104332,143.41,143.38,1.5194]
[1750869651075,6.97350069,143.4,143.38,1.5194]
[1750869651458,13.66423274,143.41,143.38,1.5194]
[1750869651775,6.97318942,143.41,143.38,1.5194]
[1750869652267,6.97263053,143.42,143.39,6.69104332]
[1750869654571,155.5722673,143.43,143.39,6.69104332]
[1750869655672,155.5722673,143.43,143.4,6.69104332]
[1750869655873,155.5722673,143.43,143.38,8.49382435]
[1750869655874,148.6,143.43,143.41,6.69104332]
[1750869658378,6.97123661,143.45,143.41,6.69104332]
[1750869658975,32.69104332,143.46,143.41,13.66405022]
[1750869658976,39.66183786,143.46,143.41,13.66405022]
[1750869659190,39.66183786,143.46,143.41,6.69104332]
[1750869659847,39.66183786,143.46,143.41,13.66404744]
[1750869660368,6.97032372,143.47,143.43,6.69104332]
[1750869660568,6.97032372,143.47,143.41,6.97300412]
[1750869660569,6.97011657,143.47,143.44,6.69104332]
[1750869660762,6.97011657,143.47,143.43,6.69104332]
[1750869660948,12.15476053,143.47,143.43,6.69104332]
[1750869661782,6.97011657,143.47,143.43,6.69104332]
[1750869661977,6.69104332,143.45,143.39,6.97398702]
[1750869662158,6.69104332,143.42,143.38,8.21044332]
[1750869662358,6.69104332,143.42,143.38,1.5194]
[1750869663094,177.86,143.45,143.38,15.18491114]
[1750869663261,6.69104332,143.43,143.39,6.69104332]
[1750869663459,6.69104332,143.42,143.38,8.21044332]
[1750869663966,13.66389232,143.42,143.38,8.21044332]
[1750869664371,13.66389232,143.42,143.38,1.5194]
[1750869664572,13.66389232,143.42,143.38,8.21044332]
[1750869664771,6.972849,143.42,143.38,15.18487856]
[1750869664974,6.972849,143.42,143.38,8.21044332]
[1750869666685,6.69104332,143.4,143.35,32.69104332]
[1750869666887,6.69104332,143.4,143.34,7.828]
[1750869666888,6.69104332,143.39,143.34,1.5723]
[1750869667093,6.69104332,143.38,143.34,8.26334332]
[1750869667270,6.69104332,143.39,143.34,8.26334332]
[1750869667470,6.69104332,143.4,143.35,6.69104332]
[1750869668171,13.66502269,143.4,143.35,6.69104332]
[1750869669877,6.69104332,143.37,143.34,1.5723]
[1750869670081,155.57422578,143.39,143.32,6.69104332]
[1750869670082,6.69104332,143.36,143.32,6.69104332]
[1750869670278,6.69104332,143.36,143.31,1.509]
[1750869670481,6.69104332,143.36,143.31,8.20004332]
[1750869670986,6.69104332,143.35,143.31,8.20004332]
[1750869671693,13.6672776,143.35,143.31,1.509]
[1750869671886,6.69104332,143.34,143.31,1.509]
[1750869672482,6.69104332,143.34,143.29,6.69104332]
[1750869674097,6.97690643,143.33,143.29,6.69104332]
[1750869674677,13.66794975,143.33,143.28,1.6258]
[1750869674877,6.69104332,143.31,143.28,1.6258]
[1750869675184,6.69104332,143.31,143.26,26.0]
[1750869675385,6.69104332,143.31,143.26,32.69104332]
[1750869675889,6.69104332,143.31,143.26,6.69104332]
[1750869676196,6.97844765,143.3,143.26,6.69104332]
[1750869676364,6.97844765,143.3,143.26,13.67130655]
[1750869676566,13.66914809,143.31,143.26,13.67130655]
[1750869677166,13.66914809,143.31,143.26,6.69104332]
[1750869677676,13.66914809,143.31,143.26,13.67133027]
[1750869677997,13.66914809,143.31,143.26,6.69104332]
[1750869678186,6.69104332,143.3,143.26,6.69104332]
[1750869678499,6.69104332,143.3,143.25,8.34844332]
[1750869678900,6.69104332,143.29,143.25,8.34844332]
[1750869679802,6.69104332,143.29,143.25,1.6574]
[1750869679996,6.69104332,143.29,143.25,8.34844332]
[1750869680402,6.69104332,143.3,143.25,15.32920472]
[1750869680696,6.69104332,143.3,143.26,6.69104332]
[1750869681206,6.69104332,143.3,143.25,15.32920472]
[1750869681382,6.69104332,143.3,143.25,8.34844332]
[1750869682298,6.97885407,143.29,143.26,6.69104332]
[1750869682797,13.66960681,143.3,143.26,6.69104332]
[1750869683293,13.66960681,143.3,143.25,8.63810948]
[1750869683294,13.66913993,143.31,143.27,6.69104332]
[1750869683598,13.66913993,143.31,143.25,8.63810948]
[1750869683805,6.97809661,143.31,143.26,6.69104332]
[1750869684007,13.66913993,143.31,143.26,6.69104332]
[1750869684301,148.6,143.32,143.29,6.69104332]
[1750869684988,148.6,143.32,143.3,6.69104332]
[1750869685898,18.64964886,143.26,143.22,0.6982265]
[1750869686079,6.69104332,143.23,143.21,1.6306]
[1750869686273,18.64964886,143.26,143.17,8.22844332]
[1750869686274,6.69104332,143.22,143.17,8.22844332]
[1750869686478,174.74216157,143.27,143.21,6.69104332]
[1750869686695,174.74216157,143.27,143.17,8.52202616]
[1750869686696,148.6,143.27,143.23,6.69104332]
[1750869687680,155.58005,143.27,143.23,6.69104332]
[1750869688498,162.27109332,143.27,143.23,6.69104332]
[1750869690007,162.27109332,143.27,143.22,6.98217322]
[1750869690008,155.58005,143.27,143.24,6.69104332]
[1750869690307,6.97952335,143.28,143.25,6.69104332]
[1750869691178,6.97952335,143.28,143.24,6.69104332]
[1750869691494,6.97952335,143.28,143.23,8.22844332]
[1750869691495,13.67056667,143.28,143.23,8.22844332]
[1750869692509,13.67056667,143.28,143.23,15.21021631]
[1750869693115,6.97952335,143.28,143.24,6.69104332]
[1750869694314,155.57952335,143.28,143.24,6.69104332]
[1750869694616,162.27056667,143.28,143.24,6.69104332]
[1750869695910,148.6,143.28,143.25,6.69104332]
[1750869696294,155.57938841,143.28,143.24,6.69104332]
[1750869696705,162.27043173,143.28,143.24,6.69104332]
[1750869697090,162.27043173,143.28,143.23,15.21001946]
[1750869697990,162.27043173,143.28,143.23,1.5374]
[1750869697991,6.69104332,143.27,143.23,1.5374]
[1750869700118,13.67149776,143.26,143.23,1.5374]
[1750869700616,6.98045444,143.26,143.23,1.5374]
[1750869701115,148.6,143.28,143.23,8.22844332]
[1750869701416,148.6,143.28,143.25,6.69104332]
[1750869701792,148.6,143.28,143.27,6.69104332]
[1750869702621,148.6,143.28,143.26,6.69104332]
[1750869704208,148.6,143.28,143.26,13.67129513]
[1750869704916,155.57954333,143.28,143.24,32.69104332]
[1750869705110,155.57954333,143.28,143.23,1.5374]
[1750869705111,6.69104332,143.27,143.23,1.5374]
[1750869706322,155.57954333,143.28,143.23,1.5374]
[1750869706618,6.69104332,143.27,143.23,1.5374]
[1750869706815,6.69104332,143.27,143.23,8.22844332]
[1750869708325,6.98031551,143.26,143.23,8.22844332]
[1750869710321,6.97982829,143.27,143.23,34.22844332]
[1750869711423,6.97982829,143.27,143.24,6.69104332]
[1750869712224,155.29104332,143.28,143.25,6.69104332]
[1750869712225,148.6,143.28,143.25,6.69104332]
[1750869712427,148.6,143.28,143.26,6.69104332]
[1750869715210,148.6,143.28,143.26,39.67113639]
[1750869715529,148.6,143.28,143.26,6.69104332]
[1750869717526,148.6,143.28,143.27,6.69104332]
[1750869717732,148.6,143.28,143.26,13.67120257]
[1750869718511,148.6,143.28,143.27,6.69104332]
[1750869719817,20.24913908,143.31,143.27,13.67082749]
[1750869719818,13.55809576,143.31,143.27,13.67082749]
[1750869720018,162.26855118,143.32,143.28,6.69104332]
[1750869720331,155.57750786,143.32,143.29,6.69104332]
[1750869721133,148.6,143.32,143.29,6.69104332]
[1750869721344,148.6,143.32,143.29,13.66977746]
[1750869721633,148.6,143.32,143.31,6.69104332]
[1750869721937,13.25104332,143.36,143.31,6.69104332]
[1750869722139,5.19003463,143.35,143.31,6.69104332]
[1750869722346,13.25104332,143.36,143.31,6.69104332]
[1750869722519,18.43890069,143.36,143.31,6.69104332]
[1750869722716,25.41445778,143.36,143.31,13.6687176]
[1750869722910,18.72341446,143.36,143.32,6.69104332]
[1750869723123,25.41445778,143.36,143.32,6.69104332]
[1750869723333,18.72341446,143.36,143.31,13.6687176]
[1750869723636,25.41445778,143.36,143.31,13.6687176]
[1750869725035,20.22660041,143.36,143.31,13.6687176]
[1750869725430,148.6,143.37,143.29,1.6008]
[1750869725431,148.6,143.37,143.34,6.69104332]
[1750869725745,39.66570527,143.38,143.34,6.69104332]
[1750869725949,6.69104332,143.36,143.31,6.69104332]
[1750869726144,6.69104332,143.35,143.3,6.97836706]
[1750869726330,6.69104332,143.35,143.31,6.69104332]
[1750869727234,6.69104332,143.36,143.31,13.66870287]
[1750869727934,6.69104332,143.36,143.32,6.69104332]
[1750869730036,155.57495989,143.37,143.33,6.69104332]
[1750869730238,148.6,143.37,143.34,6.69104332]
[1750869730443,148.6,143.37,143.35,6.69104332]
[1750869730933,148.6,143.37,143.35,8.21444332]
[1750869731529,26.0,143.38,143.36,6.69104332]
[1750869733648,44.64964886,143.38,143.37,6.69104332]
[1750869734330,6.97254986,143.42,143.37,32.69104332]
[1750869734543,13.66331699,143.43,143.38,6.69104332]
[1750869734775,162.26277215,143.44,143.4,6.69104332]
[1750869734930,155.57172883,143.44,143.4,6.69104332]
[1750869735258,162.26277215,143.44,143.4,6.69104332]
[1750869735634,155.57172883,143.44,143.4,13.66450948]
[1750869735833,148.6,143.44,143.42,6.69104332]
[1750869736161,148.6,143.44,143.41,8.19954332]
[1750869737833,148.6,143.44,143.41,15.17248812]
[1750869738045,148.6,143.44,143.42,6.69104332]
[1750869739036,162.11079243,143.46,143.42,6.69104332]
[1750869739237,168.80183575,143.46,143.42,6.69104332]
[1750869740374,168.80183575,143.46,143.42,13.66352601]
[1750869740686,162.11079243,143.46,143.42,13.66352601]
[1750869740836,155.14,143.46,143.42,13.66352601]
[1750869741236,155.14,143.46,143.43,6.69104332]
[1750869741457,148.6,143.46,143.43,6.69104332]
[1750869742658,155.570731,143.46,143.42,6.69104332]
[1750869744440,148.6,143.46,143.42,13.66343698]
[1750869744644,162.26123036,143.47,143.42,13.66343698]
[1750869744845,162.26123036,143.47,143.42,6.69104332]
[1750869747559,6.69104332,143.43,143.37,1.5136]
[1750869747874,6.69104332,143.39,143.37,1.5136]
[1750869748378,6.69104332,143.4,143.37,1.5136]
[1750869749673,6.69104332,143.38,143.34,27.6245]
[1750869749873,6.69104332,143.36,143.34,1.6245]
[1750869750254,6.69104332,143.37,143.34,1.6245]
[1750869751064,155.5735715,143.4,143.35,6.69104332]
[1750869751271,162.26461482,143.4,143.36,6.69104332]
[1750869751477,162.26461482,143.4,143.34,8.60086558]
[1750869751478,6.69104332,143.39,143.35,6.69104332]
[1750869751877,6.69104332,143.38,143.34,8.31554332]
[1750869752077,6.69104332,143.37,143.34,1.6245]
[1750869753448,13.66619957,143.37,143.34,1.6245]
[1750869755483,13.6656605,143.38,143.34,8.31554332]
[1750869755709,148.6,143.4,143.37,6.69104332]
[1750869755858,148.6,143.4,143.36,6.69104332]
[1750869757172,155.57355408,143.4,143.36,6.69104332]
[1750869757356,162.2645974,143.4,143.36,6.69104332]
[1750869758468,162.2645974,143.4,143.35,6.69104332]
[1750869758875,162.2645974,143.4,143.36,6.69104332]
[1750869759177,6.69104332,143.39,143.34,15.2918128]
[1750869759381,155.57355408,143.4,143.34,1.6245]
[1750869759382,6.69104332,143.37,143.34,1.6245]
[1750869759952,13.66625448,143.37,143.34,1.6245]
[1750869760377,6.97521116,143.37,143.34,1.6245]
[1750869762173,6.97463391,143.38,143.34,8.31554332]
[1750869764688,13.66567723,143.38,143.37,26.0]
[1750869764880,13.66519803,143.39,143.37,26.0]
[1750869765884,6.69104332,143.38,143.35,26.0]
[1750869766673,13.66588246,143.38,143.35,26.0]
[1750869768067,13.66588246,143.38,143.34,8.31554332]
[1750869768467,6.69104332,143.38,143.34,15.29189837]
[1750869768687,6.69104332,143.38,143.34,8.31554332]
[1750869769373,13.66554813,143.38,143.34,8.31554332]
[1750869770785,13.66503034,143.39,143.34,1.6245]
[1750869770986,6.69104332,143.38,143.34,1.6245]
[1750869771179,6.69104332,143.36,143.34,1.6245]
[1750869771682,155.29104332,143.37,143.34,1.6245]
[1750869771888,148.6,143.37,143.34,8.31554332]
[1750869772190,148.6,143.37,143.35,6.69104332]
[1750869772492,148.6,143.37,143.34,8.31554332]
[1750869772692,148.6,143.37,143.34,15.29190472]
[1750869772892,148.6,143.37,143.34,8.31554332]
[1750869773200,148.6,143.37,143.34,1.6245]
[1750869773201,155.57510763,143.37,143.34,1.6245]
[1750869773398,162.26615095,143.37,143.34,1.6245]
[1750869773566,162.26615095,143.37,143.31,6.9776822]
[1750869773897,6.69104332,143.36,143.32,6.69104332]
[1750869774079,162.26615095,143.37,143.32,6.69104332]
[1750869775715,155.57510763,143.37,143.3,34.57849092]
[1750869775902,148.6,143.36,143.32,6.69104332]
[1750869777014,155.57589378,143.36,143.32,6.69104332]
[1750869777217,155.57589378,143.36,143.33,6.69104332]
[1750869778008,148.6,143.35,143.31,6.69104332]
[1750869778396,155.29104332,143.35,143.31,6.69104332]
[1750869778601,148.6,143.35,143.31,6.69104332]
[1750869779296,6.9764197,143.34,143.31,6.69104332]
[1750869779499,148.6,143.33,143.3,8.29134332]
[1750869779695,155.29104332,143.33,143.29,26.4810075]
[1750869779906,155.29104332,143.33,143.26,1.6042]
[1750869779907,6.69104332,143.31,143.27,6.69104332]
[1750869780111,6.69104332,143.3,143.26,8.29524332]
[1750869780290,25.48285375,143.3,143.26,8.29524332]
[1750869780616,18.79181043,143.3,143.27,6.69104332]
[1750869781807,6.97885407,143.29,143.27,6.69104332]
[1750869783795,25.77031736,143.3,143.27,6.69104332]
[1750869784000,155.57719053,143.33,143.29,6.69104332]
[1750869784304,155.57719053,143.33,143.31,6.69104332]
[1750869784500,18.64964886,143.32,143.29,6.69104332]
[1750869785105,18.64964886,143.32,143.28,6.69104332]
[1750869785307,18.79181043,143.3,143.26,1.6042]
[1750869785514,25.77060632,143.3,143.27,6.69104332]
[1750869785711,148.6,143.29,143.27,6.69104332]
[1750869787519,155.57894489,143.29,143.27,6.69104332]
[1750869788409,155.57894489,143.29,143.26,1.6042]
[1750869788603,155.57894489,143.29,143.27,6.69104332]
[1750869788799,148.6,143.29,143.27,6.69104332]
[1750869790126,155.57893088,143.29,143.26,8.29524332]
[1750869792129,184.73893088,143.29,143.26,8.29524332]
[1750869792430,155.57893088,143.29,143.26,8.29524332]
[1750869792899,148.6,143.29,143.27,6.69104332]
[1750869793319,148.6,143.29,143.26,1.6042]
[1750869793320,148.6,143.29,143.28,6.69104332]
[1750869795136,148.6,143.29,143.28,13.67038447]
[1750869796037,148.6,143.29,143.28,6.69104332]
[1750869796328,148.6,143.29,143.26,8.29524332]
[1750869796631,155.57894897,143.29,143.26,8.29524332]
[1750869796832,155.57894897,143.29,143.22,17.45549065]
[1750869796833,18.64964886,143.26,143.22,1.5549]
[1750869797131,0.14216157,143.21,143.16,6.69104332]
[1750869797323,6.69104332,143.2,143.15,1.6237]
[1750869797527,29.14,143.19,143.16,6.69104332]
[1750869797722,0.14216157,143.21,143.17,6.69104332]
[1750869798034,29.14,143.2,143.17,6.69104332]
[1750869798410,29.28216157,143.21,143.17,6.69104332]
[1750869798736,6.98324022,143.2,143.17,6.69104332]
[1750869798947,36.26510988,143.21,143.17,6.69104332]
[1750869800113,29.28216157,143.21,143.18,6.69104332]
[1750869800434,36.26500337,143.21,143.18,6.69104332]
[1750869800828,36.26500337,143.21,143.16,6.98488159]
[1750869801032,155.29104332,143.22,143.16,6.98488159]
[1750869801227,148.6,143.22,143.21,6.69104332]
[1750869801406,35.64,143.24,143.21,6.69104332]
[1750869801724,6.5,143.24,143.22,6.69104332]
[1750869801924,6.5,143.24,143.21,6.69104332]
[1750869802406,13.48136816,143.24,143.21,6.69104332]
[1750869803529,20.17241148,143.24,143.2,6.69104332]
[1750869804310,13.48136816,143.24,143.2,6.69104332]
[1750869808010,13.48136816,143.24,143.17,26.0]
[1750869808011,54.48069218,143.23,143.17,26.0]
[1750869808213,155.29104332,143.22,143.18,6.69104332]
[1750869808512,155.29104332,143.22,143.17,26.0]
[1750869808513,6.69104332,143.21,143.17,6.69104332]
[1750869808719,6.98324022,143.2,143.15,8.60921016]
[1750869808926,6.98324022,143.2,143.15,1.6237]
[1750869809123,13.67428354,143.2,143.16,6.69104332]
[1750869811338,155.29104332,143.19,143.15,8.31474332]
[1750869811546,25.48285375,143.18,143.13,6.69104332]
[1750869811845,25.48285375,143.18,143.11,34.53216714]
[1750869811846,28.91120264,143.18,143.11,34.53216714]
[1750869812009,28.91120264,143.18,143.14,6.69104332]
[1750869812010,148.6,143.17,143.14,6.69104332]
[1750869813047,155.58505925,143.17,143.14,6.69104332]
[1750869813533,155.58505925,143.17,143.13,6.69104332]
[1750869815843,148.6,143.17,143.15,6.69104332]
[1750869816015,148.6,143.17,143.13,6.98652882]
[1750869816016,148.6,143.21,143.16,6.69104332]
[1750869816216,155.58284503,143.21,143.17,6.69104332]
[1750869816518,162.27388835,143.21,143.17,6.69104332]
[1750869816719,148.6,143.21,143.18,6.69104332]
[1750869816930,148.6,143.21,143.19,6.69104332]
[1750869817729,148.6,143.21,143.2,6.69104332]
[1750869818449,155.58291428,143.21,143.19,6.69104332]
[1750869819126,148.6,143.21,143.19,6.69104332]
[1750869820847,148.6,143.21,143.2,6.69104332]
[1750869822156,9.05060005,143.26,143.2,20.36532686]
[1750869822333,9.05060005,143.26,143.25,6.69104332]
[1750869822649,29.14,143.27,143.24,6.69104332]
[1750869823145,32.46337394,143.26,143.22,6.69104332]
[1750869823346,35.83104332,143.25,143.18,6.98421567]
[1750869823531,35.83104332,143.25,143.21,6.69104332]
[1750869824149,40.99805593,143.25,143.21,6.69104332]
[1750869824327,6.98129014,143.24,143.21,6.69104332]
[1750869824526,6.98129014,143.24,143.22,6.69104332]
[1750869825746,6.98129014,143.24,143.21,6.69104332]
[1750869828542,167.39181043,143.23,143.17,1.6454]
[1750869828850,13.67525899,143.18,143.14,1.5563]
[1750869829156,184.41104332,143.17,143.14,1.5563]
[1750869829333,184.41104332,143.17,143.12,6.69104332]
[1750869829727,184.41104332,143.17,143.11,1.5563]
[1750869829926,177.72,143.17,143.13,6.69104332]
[1750869830146,184.41104332,143.17,143.13,6.69104332]
[1750869830834,6.98519139,143.16,143.13,6.69104332]
[1750869831831,13.67623471,143.16,143.12,6.69104332]
[1750869832253,31.13921319,143.16,143.12,6.69104332]
[1750869833035,24.44816987,143.16,143.12,6.69104332]
[1750869833836,24.44816987,143.16,143.11,1.5563]
[1750869834042,31.13921319,143.16,143.12,6.69104332]
[1750869835054,31.13921319,143.16,143.11,1.5563]
[1750869835055,173.94069218,143.15,143.11,1.5563]
[1750869835260,173.94069218,143.15,143.11,8.24734332]
[1750869835556,173.94069218,143.15,143.11,1.5563]
[1750869835762,173.94069218,143.15,143.11,8.24734332]
[1750869835932,167.24964886,143.15,143.11,8.24734332]
[1750869836133,148.6,143.14,143.12,6.69104332]
[1750869837962,155.58656198,143.14,143.12,6.69104332]
[1750869838165,155.58656198,143.14,143.11,1.5563]
[1750869838457,155.58656198,143.14,143.12,6.69104332]
[1750869838755,148.6,143.14,143.13,6.69104332]
[1750869839965,155.58616738,143.14,143.13,6.69104332]
[1750869841157,148.6,143.14,143.13,6.69104332]
[1750869842355,148.6,143.14,143.13,13.6776988]
[1750869843360,47.76964886,143.2,143.13,13.6776988]
[1750869843361,184.70345742,143.2,143.13,13.6776988]
[1750869843661,148.6,143.2,143.19,6.69104332]
[1750869846867,148.6,143.2,143.19,13.67477123]
[1750869847165,148.6,143.2,143.19,6.69104332]
[1750869847550,148.6,143.2,143.19,13.67477123]
[1750869848065,6.5,143.25,143.19,13.67477123]
[1750869848269,6.5,143.25,143.23,6.69104332]
[1750869849063,6.5,143.25,143.24,6.69104332]
[1750869849268,148.6,143.26,143.24,6.69104332]
[1750869849469,148.6,143.26,143.25,6.69104332]
[1750869852660,36.0790636,143.29,143.25,6.69104332]
[1750869853263,36.0790636,143.29,143.26,6.69104332]
[1750869853564,36.0790636,143.29,143.23,8.54389921]
[1750869853764,36.0790636,143.29,143.25,6.69104332]
[1750869853967,42.77010692,143.29,143.24,6.69104332]
[1750869854576,36.0790636,143.29,143.26,6.69104332]
[1750869854972,29.1,143.29,143.26,6.69104332]
[1750869855153,177.1883026,143.3,143.26,6.69104332]
[1750869855349,148.6,143.3,143.29,6.69104332]
[1750869856169,191.36957221,143.3,143.26,6.69104332]
[1750869856479,191.36957221,143.3,143.25,6.69104332]
[1750869857355,148.6,143.29,143.26,6.69104332]
[1750869857977,36.07934115,143.28,143.24,6.69104332]
[1750869858187,155.29104332,143.27,143.23,1.5623]
[1750869858359,35.79104332,143.26,143.23,1.5623]
[1750869858755,18.64964886,143.25,143.2,1.6641]
[1750869858982,148.6,143.27,143.24,6.69104332]
[1750869859192,177.7,143.27,143.25,6.69104332]
[1750869859487,148.6,143.27,143.25,6.69104332]
[1750869859986,162.27089278,143.27,143.23,6.69104332]
[1750869860287,155.57984946,143.27,143.23,6.69104332]
[1750869861090,162.27089278,143.27,143.23,6.69104332]
[1750869861253,162.27089278,143.27,143.21,6.9827526]
[1750869861254,6.69104332,143.25,143.21,6.69104332]
[1750869861695,35.77104332,143.26,143.21,6.69104332]
[1750869862276,25.34069218,143.25,143.21,6.69104332]
[1750869863201,6.98129014,143.24,143.21,6.69104332]
[1750869863884,155.58129014,143.24,143.2,1.6641]
[1750869864077,155.58129014,143.24,143.18,6.69104332]
[1750869864078,6.69104332,143.22,143.18,6.69104332]
[1750869864383,155.29104332,143.21,143.17,6.69104332]
[1750869864560,148.6,143.21,143.17,6.69104332]
[1750869864762,6.69104332,143.18,143.13,1.6639]
[1750869864963,6.69104332,143.18,143.14,6.69104332]
[1750869865179,6.98470349,143.17,143.13,8.35494332]
[1750869866586,13.67545443,143.18,143.14,6.69104332]
[1750869866973,6.98441111,143.18,143.15,6.69104332]
[1750869867174,29.08,143.2,143.15,6.69104332]
[1750869867393,35.77104332,143.2,143.16,6.69104332]
[1750869868486,6.98080279,143.25,143.19,10.05290818]